fUSD/lending_fUSD_20260523
["ID","MTS","AMOUNT","RATE_DAILY","PERIOD"]
[422834351,1779496234000,-250.0,9.528e-05,2]
[422834357,1779496234000,-163.31,9.609e-05,2]
[422834358,1779496234000,-255.0,9.676e-05,2]
[422834339,1779496234000,-5779.77024734,8.878e-05,2]
[422834361,1779496234000,-157.6,9.972e-05,2]
[422834359,1779496234000,-2000.0,9.77e-05,2]
[422834331,1779496234000,-11053.5454682,8.843e-05,2]
[422834317,1779496234000,-182.0,8.683e-05,2]
[422834328,1779496234000,-237.0,8.835e-05,2]
[422834306,1779496234000,-62596.6949,8.649e-05,2]
[422834308,1779496234000,-250.0,8.657e-05,2]
[422834309,1779496234000,-723.73,8.662e-05,2]
[422834307,1779496234000,-2442.33,8.652e-05,2]
[422834311,1779496234000,-1200.0,8.676e-05,2]
[422834310,1779496234000,-500.0,8.664e-05,2]
[422834312,1779496234000,-4805.6,8.677e-05,2]
[422834313,1779496234000,-200.0,8.682e-05,2]
[422834315,1779496234000,-300.0,8.683e-05,2]
[422834314,1779496234000,-300.0,8.683e-05,2]
[422834316,1779496234000,-300.0,8.683e-05,2]
[422834318,1779496234000,-670.0,8.684e-05,2]
[422834320,1779496234000,-163.63,8.688e-05,2]
[422834319,1779496234000,-2000.0,8.685e-05,2]
[422834360,1779496234000,-774.68,9.96e-05,2]
[422834322,1779496234000,-150.0,8.749e-05,2]
[422834325,1779496234000,-150.0,8.796e-05,2]
[422834326,1779496234000,-33202.0309,8.797e-05,2]
[422834324,1779496234000,-153.12137068,8.753e-05,2]
[422834323,1779496234000,-179.47252941,8.753e-05,2]
[422834327,1779496234000,-170.43895318,8.824e-05,2]
[422834330,1779496234000,-18374.0921555,8.843e-05,2]
[422834371,1779496234000,-500.0,0.00010277,2]
[422834321,1779496234000,-5906.95,8.714e-05,2]
[422834362,1779496234000,-298.47759844,0.0001,2]
[422834388,1779496234000,-163.31,0.00010341,2]
[422834389,1779496234000,-2500.0,0.00010455,2]
[422834390,1779496234000,-157.6,0.00010497,2]
[422834395,1779496234000,-143214.72790763,0.00010555,2]
[422834396,1779496234000,-500.0,0.00010615,2]
[422834386,1779496234000,-2656.96,0.00010278,2]
[422834398,1779496234000,-208.8727521,0.00010699,2]
[422834400,1779496234000,-357.3614491,0.00010699,2]
[422834399,1779496234000,-500.0,0.00010699,2]
[422834407,1779496234000,-192.41983094,0.00010699,2]
[422834402,1779496234000,-374.7808925,0.00010699,2]
[422834408,1779496234000,-500.0,0.00010699,2]
[422834401,1779496234000,-500.0,0.00010699,2]
[422834409,1779496234000,-22377.74322537,0.000107,2]
[422834404,1779496234000,-500.0,0.00010699,2]
[422834406,1779496234000,-500.0,0.00010699,2]
[422834403,1779496234000,-195.13288528,0.00010699,2]
[422834405,1779496234000,-500.0,0.00010699,2]
[422834411,1779496234000,-139017.49210833,0.000107,2]
[422834410,1779496234000,-101561.64976183,0.000107,2]
[422834412,1779496234000,-43865.80253434,0.000107,2]
[422834394,1779496234000,-4351.547034,0.00010555,2]
[422834392,1779496234000,-587.0,0.00010506,2]
[422834393,1779496234000,-2656.96,0.00010529,2]
[422834397,1779496234000,-433.0,0.00010643,2]
[422834370,1779496234000,-500.0,0.00010277,2]
[422834366,1779496234000,-500.0,0.00010277,2]
[422834365,1779496234000,-500.0,0.00010277,2]
[422834367,1779496234000,-500.0,0.00010277,2]
[422834368,1779496234000,-500.0,0.00010277,2]
[422834364,1779496234000,-500.0,0.00010277,2]
[422834391,1779496234000,-2351.0,0.00010498,2]
[422834372,1779496234000,-500.0,0.00010277,2]
[422834375,1779496234000,-500.0,0.00010277,2]
[422834376,1779496234000,-500.0,0.00010277,2]
[422834374,1779496234000,-500.0,0.00010277,2]
[422834369,1779496234000,-500.0,0.00010277,2]
[422834383,1779496234000,-500.0,0.00010277,2]
[422834373,1779496234000,-500.0,0.00010277,2]
[422834379,1779496234000,-500.0,0.00010277,2]
[422834380,1779496234000,-375.95705782,0.00010277,2]
[422834381,1779496234000,-500.0,0.00010277,2]
[422834387,1779496234000,-882.98,0.00010302,2]
[422834382,1779496234000,-500.0,0.00010277,2]
[422834385,1779496234000,-500.0,0.00010277,2]
[422834377,1779496234000,-500.0,0.00010277,2]
[422834384,1779496234000,-500.0,0.00010277,2]
[422834378,1779496234000,-500.0,0.00010277,2]
[422834363,1779496234000,-2656.96,0.00010027,2]
[422834420,1779496238000,-13868.39036333,0.000107,2]
[422834419,1779496238000,-1750.46774159,0.000107,2]
[422834418,1779496238000,-2149.54225841,0.000107,2]
[422834417,1779496238000,-2851.21217869,0.000107,2]
[422834416,1779496238000,-265.712551,0.000107,2]
[422834415,1779496238000,-743.52919727,0.000107,2]
[422834414,1779496238000,-2560.5904227,0.000107,2]
[422834436,1779496240000,-66762.38425021,0.000107,2]
[422834438,1779496240000,-279.5831,0.000107,2]
[422834437,1779496240000,-2877.10776756,0.000107,2]
[422834439,1779496241000,-500.0,0.00010027,2]
[422834440,1779496241000,-795.18201461,0.000107,2]
[422834456,1779496244000,-9957.72573028,0.000107,2]
[422834454,1779496244000,-290.0373289,0.000107,2]
[422834453,1779496244000,-1348.64758746,0.000107,2]
[422834455,1779496244000,-9471.37882837,0.000107,2]
[422834451,1779496244000,-500.0,0.00010575,2]
[422834452,1779496244000,-1355.0,0.0001062,2]
[422834450,1779496244000,-500.0,0.00010301,2]
[422834476,1779496247000,-5484.44130836,0.000107,2]
[422834475,1779496247000,-1274.80085866,0.00010607,2]
[422834477,1779496247000,-906.56,0.000107,2]
[422834478,1779496247000,-1708.99085068,0.000107,2]
[422834480,1779496247000,-754.59,0.000107,2]
[422834481,1779496247000,-684.78,0.000107,2]
[422834479,1779496247000,-9055.48965738,0.000107,2]
[422834519,1779496321000,-13868.39036333,8.697e-05,2]
[422834522,1779496755000,163.09,5.872e-05,2]
[422834521,1779496755000,163.09,5.285e-05,2]
[422834520,1779496755000,163.09,4.698e-05,2]
[422834523,1779496756000,163.09,6.459e-05,2]
[422834524,1779496756000,163.09,7.046e-05,2]
[422834525,1779496756000,163.09,7.634e-05,2]
[422834526,1779496756000,163.09,8.221e-05,2]
[422834527,1779496927000,747.0,0.00010132,5]
[422834528,1779496935000,663.3,0.00028,120]
[422834530,1779497219000,1100.0,9.9e-05,3]
[422834531,1779497221000,2200.0,0.0001,3]
[422834534,1779497340000,1000.0,0.00028078,120]
[422834535,1779497382000,3952.89,8.628e-05,2]
[422834557,1779497434000,-150.0,9.272e-05,2]
[422834556,1779497434000,-1417.91432772,9.173e-05,2]
[422834559,1779497434000,-3765.9,9.273e-05,2]
[422834560,1779497434000,-380.0,9.273e-05,2]
[422834561,1779497434000,-484.5,9.273e-05,2]
[422834572,1779497434000,-359.27,9.612e-05,2]
[422834563,1779497434000,-25930.82309981,9.273e-05,2]
[422834564,1779497434000,-9251.73130861,9.273e-05,2]
[422834570,1779497434000,-250.0,9.562e-05,2]
[422834567,1779497434000,-163.09,9.395e-05,2]
[422834562,1779497434000,-75005.40884444,9.273e-05,2]
[422834558,1779497434000,-1487.074029,9.273e-05,2]
[422834555,1779497434000,-3099.68292537,9.173e-05,2]
[422834540,1779497434000,-605.31692416,8.693e-05,2]
[422834554,1779497434000,-2288.12024691,9.173e-05,2]
[422834553,1779497434000,-262.58,9.171e-05,2]
[422834551,1779497434000,-2078.76583576,9.079e-05,2]
[422834548,1779497434000,-1200.0,8.996e-05,2]
[422834549,1779497434000,-166.67,8.997e-05,2]
[422834550,1779497434000,-300.0,9.078e-05,2]
[422834547,1779497434000,-208.7374384,8.856e-05,2]
[422834546,1779497434000,-163.09,8.808e-05,2]
[422834543,1779497434000,-237.0,8.779e-05,2]
[422834545,1779497434000,-171.258,8.791e-05,2]
[422834542,1779497434000,-250.0,8.694e-05,2]
[422834544,1779497434000,-1260.96,8.791e-05,2]
[422834541,1779497434000,-615.84307584,8.693e-05,2]
[422834552,1779497434000,-402.85416424,9.079e-05,2]
[422834565,1779497434000,-2000.0,9.286e-05,2]
[422834587,1779497434000,-500.0,9.676e-05,2]
[422834566,1779497434000,-3526.0,9.391e-05,2]
[422834571,1779497434000,-250.0,9.566e-05,2]
[422834619,1779497434000,-500.0,9.676e-05,2]
[422834621,1779497434000,-500.0,9.676e-05,2]
[422834623,1779497434000,-527.86399503,9.676e-05,2]
[422834615,1779497434000,-500.0,9.676e-05,2]
[422834617,1779497434000,-500.0,9.676e-05,2]
[422834600,1779497434000,-500.0,9.676e-05,2]
[422834610,1779497434000,-500.0,9.676e-05,2]
[422834602,1779497434000,-500.0,9.676e-05,2]
[422834604,1779497434000,-500.0,9.676e-05,2]
[422834608,1779497434000,-500.0,9.676e-05,2]
[422834606,1779497434000,-500.0,9.676e-05,2]
[422834597,1779497434000,-500.0,9.676e-05,2]
[422834613,1779497434000,-500.0,9.676e-05,2]
[422834593,1779497434000,-500.0,9.676e-05,2]
[422834569,1779497434000,-158.25,9.551e-05,2]
[422834568,1779497434000,-9468.0,9.424e-05,2]
[422834595,1779497434000,-500.0,9.676e-05,2]
[422834574,1779497434000,-500.0,9.676e-05,2]
[422834583,1779497434000,-500.0,9.676e-05,2]
[422834589,1779497434000,-500.0,9.676e-05,2]
[422834573,1779497434000,-500.0,9.676e-05,2]
[422834577,1779497434000,-500.0,9.676e-05,2]
[422834579,1779497434000,-500.0,9.676e-05,2]
[422834585,1779497434000,-500.0,9.676e-05,2]
[422834581,1779497434000,-500.0,9.676e-05,2]
[422834591,1779497434000,-500.0,9.676e-05,2]
[422834575,1779497434000,-500.0,9.676e-05,2]
[422834637,1779497435000,-500.0,9.778e-05,2]
[422834628,1779497435000,-2500.0,9.679e-05,2]
[422834630,1779497435000,-5114.2164607,9.726e-05,2]
[422834625,1779497435000,-500.0,9.676e-05,2]
[422834627,1779497435000,-5000.0,9.679e-05,2]
[422834636,1779497435000,-500.0,9.778e-05,2]
[422834632,1779497435000,-4075.5676976,9.726e-05,2]
[422834634,1779497435000,-3016.7029945,9.726e-05,2]
[422834638,1779497435000,-262.34662475,9.778e-05,2]
[422834635,1779497435000,-3127.1850198,9.726e-05,2]
[422834640,1779497435000,-186.5930197,9.778e-05,2]
[422834639,1779497435000,-500.0,9.778e-05,2]
[422834648,1779497435000,-13161.9209215,9.779e-05,2]
[422834646,1779497435000,-60188.82410867,9.779e-05,2]
[422834645,1779497435000,-8703.94432057,9.779e-05,2]
[422834647,1779497435000,-300.0,9.779e-05,2]
[422834642,1779497435000,-500.0,9.778e-05,2]
[422834641,1779497435000,-250.15301437,9.778e-05,2]
[422834644,1779497435000,-184.69388166,9.778e-05,2]
[422834643,1779497435000,-500.0,9.778e-05,2]
[422834649,1779497435000,-1305.0,9.779e-05,2]
[422834687,1779497438000,-6059.0,0.0001062,2]
[422834672,1779497438000,-2000.0,0.00010446,2]
[422834671,1779497438000,-393.92540562,0.000104,2]
[422834673,1779497438000,-33202.0309,0.00010455,2]
[422834675,1779497438000,-1711.49,0.00010529,2]
[422834677,1779497438000,-350.0,0.00010591,2]
[422834676,1779497438000,-2000.0,0.00010547,2]
[422834678,1779497438000,-500.0,0.00010599,2]
[422834686,1779497438000,-150.0,0.0001062,2]
[422834682,1779497438000,-625.0,0.0001062,2]
[422834683,1779497438000,-927.0,0.0001062,2]
[422834685,1779497438000,-1224.0,0.0001062,2]
[422834670,1779497438000,-500.0,0.00010325,2]
[422834681,1779497438000,-3546.0,0.0001062,2]
[422834684,1779497438000,-1271.0,0.0001062,2]
[422834689,1779497438000,-243128.19726884,0.0001065,2]
[422834699,1779497438000,-330.0,0.00010712,3]
[422834679,1779497438000,-1355.0,0.0001062,2]
[422834668,1779497438000,-1711.49,0.00010278,2]
[422834664,1779497438000,-500.0,0.00010052,2]
[422834667,1779497438000,-1400.52537883,0.00010277,2]
[422834700,1779497438000,-700.0,0.00010772,2]
[422834650,1779497438000,-4187.24692403,9.779e-05,2]
[422834652,1779497438000,-7628.8151,9.779e-05,2]
[422834651,1779497438000,-3004.30806817,9.779e-05,2]
[422834653,1779497438000,-150435.25425501,9.779e-05,2]
[422834654,1779497438000,-539.96645544,9.779e-05,2]
[422834656,1779497438000,-455.34,9.792e-05,2]
[422834655,1779497438000,-944954.48964661,9.779e-05,2]
[422834669,1779497438000,-368.35894363,0.00010319,2]
[422834657,1779497438000,-74245.28,9.879e-05,2]
[422834660,1779497438000,-7588.74267485,9.979e-05,2]
[422834661,1779497438000,-420.0,9.986e-05,2]
[422834658,1779497438000,-1680.0,9.895e-05,2]
[422834659,1779497438000,-200.0,9.974e-05,2]
[422834663,1779497438000,-1711.49,0.00010027,2]
[422834665,1779497438000,-255.0,0.00010199,2]
[422834666,1779497438000,-827.18086267,0.00010277,2]
[422834674,1779497438000,-166.67,0.00010482,2]
[422834662,1779497438000,-922.3354379,0.0001,2]
[422834688,1779497438000,-3634.0,0.0001062,2]
[422834696,1779497438000,-1000.0,0.000107,2]
[422834691,1779497438000,-151.0,0.0001065,2]
[422834722,1779497438000,-150.0,0.00010959,2]
[422834717,1779497438000,-500.0,0.00010958,3]
[422834718,1779497438000,-500.0,0.00010958,4]
[422834719,1779497438000,-21709.82,0.00010959,2]
[422834711,1779497438000,-18556.16699415,0.000109,2]
[422834721,1779497438000,-151.0,0.00010959,2]
[422834724,1779497438000,-587.0,0.00010985,2]
[422834734,1779497438000,-38238.30343516,0.00011099,2]
[422834723,1779497438000,-4544.12,0.00010959,2]
[422834726,1779497438000,-150.0,0.00011,2]
[422834727,1779497438000,-10795.128533,0.00011019,2]
[422834728,1779497438000,-200.0,0.00011024,2]
[422834730,1779497438000,-1711.49,0.0001103,2]
[422834732,1779497438000,-1098.07046975,0.00011098,3]
[422834733,1779497438000,-38238.3034352,0.00011099,2]
[422834731,1779497438000,-300.0,0.00011098,2]
[422834690,1779497438000,-151.0,0.0001065,2]
[422834720,1779497438000,-150.0,0.00010959,2]
[422834716,1779497438000,-500.0,0.00010958,2]
[422834725,1779497438000,-8379.95580379,0.00011,2]
[422834713,1779497438000,-200.0,0.00010915,2]
[422834715,1779497438000,-865.60724,0.00010956,2]
[422834692,1779497438000,-174524.49624498,0.000107,2]
[422834693,1779497438000,-200.0,0.000107,2]
[422834698,1779497438000,-361.98,0.00010707,2]
[422834697,1779497438000,-401.73290602,0.000107,2]
[422834695,1779497438000,-200.0,0.000107,2]
[422834703,1779497438000,-200.0,0.00010807,2]
[422834701,1779497438000,-1711.49,0.00010779,2]
[422834702,1779497438000,-200.0,0.00010807,2]
[422834729,1779497438000,-200.0,0.00011024,2]
[422834706,1779497438000,-500.0,0.00010873,2]
[422834707,1779497438000,-4882.63156878,0.00010877,2]
[422834708,1779497438000,-261.993644,0.00010877,2]
[422834704,1779497438000,-359.27,0.00010813,2]
[422834709,1779497438000,-2351.0,0.00010885,2]
[422834710,1779497438000,-3400.0,0.000109,3]
[422834714,1779497438000,-200.0,0.00010915,2]
[422834705,1779497438000,-163.63,0.0001086,2]
[422834712,1779497438000,-18556.16699413,0.000109,2]
[422834780,1779497439000,-150.0,0.00011478,2]
[422834774,1779497439000,-482.06852688,0.00011421,2]
[422834772,1779497439000,-150.0,0.000114,2]
[422834769,1779497439000,-150.0,0.00011369,2]
[422834767,1779497439000,-150.0,0.00011365,2]
[422834766,1779497439000,-150.0,0.00011348,2]
[422834768,1779497439000,-150.0,0.00011369,2]
[422834765,1779497439000,-150.0,0.00011348,2]
[422834775,1779497439000,-38238.30343516,0.00011428,2]
[422834764,1779497439000,-150.0,0.00011331,2]
[422834770,1779497439000,-150.0,0.00011383,2]
[422834778,1779497439000,-150.0,0.00011452,2]
[422834794,1779497439000,-957.0,0.00011574,5]
[422834781,1779497439000,-250.0,0.00011486,2]
[422834776,1779497439000,-150.0,0.00011435,2]
[422834773,1779497439000,-150.0,0.00011417,2]
[422834784,1779497439000,-150.0,0.00011494,2]
[422834779,1779497439000,-150.0,0.00011469,2]
[422834777,1779497439000,-150.0,0.00011452,2]
[422834785,1779497439000,-150.0,0.00011494,2]
[422834787,1779497439000,-500.0,0.00011507,2]
[422834788,1779497439000,-150.0,0.00011521,2]
[422834786,1779497439000,-150.0,0.00011504,2]
[422834791,1779497439000,-150.0,0.00011556,2]
[422834771,1779497439000,-150.0,0.000114,2]
[422834783,1779497439000,-150.0,0.00011487,2]
[422834760,1779497439000,-150.0,0.00011279,2]
[422834736,1779497439000,-39690.81006962,0.00011099,2]
[422834761,1779497439000,-150.0,0.00011296,2]
[422834735,1779497439000,-38238.30343516,0.00011099,2]
[422834737,1779497439000,-39690.81006958,0.00011099,2]
[422834739,1779497439000,-39690.81006958,0.00011099,2]
[422834740,1779497439000,-151.0,0.00011099,2]
[422834741,1779497439000,-380.6310035,0.00011099,2]
[422834738,1779497439000,-39690.81006958,0.00011099,2]
[422834747,1779497439000,-433.0,0.00011219,2]
[422834790,1779497439000,-150.0,0.00011556,2]
[422834746,1779497439000,-18556.16699413,0.0001118,2]
[422834742,1779497439000,-200.0,0.00011134,2]
[422834745,1779497439000,-500.0,0.00011161,5]
[422834743,1779497439000,-200.0,0.00011134,2]
[422834762,1779497439000,-150.0,0.00011313,2]
[422834744,1779497439000,-500.0,0.00011147,2]
[422834759,1779497439000,-150.0,0.00011261,2]
[422834748,1779497439000,-4146.027101,0.00011223,2]
[422834751,1779497439000,-150.0,0.00011244,2]
[422834752,1779497439000,-150.0,0.00011244,2]
[422834750,1779497439000,-150.0,0.00011244,2]
[422834754,1779497439000,-150.0,0.00011244,2]
[422834757,1779497439000,-150.0,0.00011244,2]
[422834753,1779497439000,-151.31876581,0.00011244,2]
[422834755,1779497439000,-150.0,0.00011244,2]
[422834758,1779497439000,-150.0,0.00011244,2]
[422834756,1779497439000,-150.0,0.00011244,2]
[422834763,1779497439000,-150.0,0.00011322,2]
[422834749,1779497439000,-150.0,0.00011233,2]
[422834789,1779497439000,-150.0,0.00011539,2]
[422834792,1779497439000,-150.0,0.00011556,2]
[422834796,1779497439000,-2000.0,0.00011607,2]
[422834826,1779497439000,-150.0,0.00011851,2]
[422834824,1779497439000,-150.0,0.00011816,2]
[422834825,1779497439000,-150.0,0.00011834,2]
[422834829,1779497439000,-150.0,0.00011868,2]
[422834830,1779497439000,-150.0,0.00011868,2]
[422834828,1779497439000,-150.0,0.00011868,2]
[422834832,1779497439000,-150.0,0.00011868,2]
[422834833,1779497439000,-150.0,0.00011868,2]
[422834835,1779497439000,-361.98,0.00011897,2]
[422834836,1779497439000,-150.0,0.00011903,2]
[422834834,1779497439000,-150.0,0.00011886,2]
[422834842,1779497439000,-150.0,0.00011973,2]
[422834837,1779497439000,-150.0,0.00011921,2]
[422834838,1779497439000,-18556.16699413,0.00011924,2]
[422834839,1779497439000,-150.0,0.00011938,2]
[422834841,1779497439000,-150.0,0.00011955,2]
[422834840,1779497439000,-150.0,0.00011947,2]
[422834844,1779497439000,-3292.0,0.00011974,2]
[422834793,1779497439000,-150.0,0.00011574,2]
[422834845,1779497439000,-666.0,0.00011979,2]
[422834846,1779497439000,-150.0,0.0001199,2]
[422834847,1779497439000,-150.0,0.00011993,2]
[422834848,1779497439000,-150.0,0.00011993,2]
[422834851,1779497439000,-359.27,0.00012015,2]
[422834850,1779497439000,-150.0,0.00012007,2]
[422834852,1779497439000,-480.7,0.00012015,2]
[422834849,1779497439000,-38238.30343516,0.00012007,2]
[422834827,1779497439000,-150.0,0.00011868,2]
[422834823,1779497439000,-150.0,0.00011799,2]
[422834843,1779497439000,-150.0,0.00011973,2]
[422834820,1779497439000,-1235.4739808,0.00011781,2]
[422834822,1779497439000,-150.0,0.0001179,2]
[422834795,1779497439000,-150.0,0.00011591,2]
[422834798,1779497439000,-150.0,0.00011619,2]
[422834797,1779497439000,-150.0,0.00011608,2]
[422834799,1779497439000,-150.0,0.00011619,2]
[422834802,1779497439000,-150.0,0.00011643,2]
[422834800,1779497439000,-150.0,0.00011626,2]
[422834807,1779497439000,-150.0,0.0001166,2]
[422834806,1779497439000,-150.0,0.0001166,2]
[422834803,1779497439000,-150.0,0.0001166,2]
[422834805,1779497439000,-150.0,0.0001166,2]
[422834804,1779497439000,-150.0,0.0001166,2]
[422834808,1779497439000,-150.0,0.00011678,2]
[422834801,1779497439000,-150.0,0.00011634,2]
[422834809,1779497439000,-150.0,0.00011695,2]
[422834810,1779497439000,-150.0,0.00011712,2]
[422834821,1779497439000,-150.0,0.00011782,2]
[422834831,1779497439000,-150.0,0.00011868,2]
[422834816,1779497439000,-350.0,0.00011745,2]
[422834817,1779497439000,-150.0,0.00011747,2]
[422834818,1779497439000,-150.0,0.00011764,2]
[422834814,1779497439000,-150.0,0.00011744,2]
[422834815,1779497439000,-150.0,0.00011744,2]
[422834813,1779497439000,-150.0,0.0001173,2]
[422834811,1779497439000,-150.0,0.00011712,2]
[422834819,1779497439000,-150.0,0.00011764,2]
[422834812,1779497439000,-39690.81006958,0.00011726,2]
[422834877,1779497440000,-150.0,0.00012231,2]
[422834872,1779497440000,-150.0,0.00012181,2]
[422834878,1779497440000,-150.0,0.00012233,2]
[422834886,1779497440000,-150.0,0.00012302,2]
[422834880,1779497440000,-150.0,0.00012243,2]
[422834885,1779497440000,-150.0,0.00012285,2]
[422834879,1779497440000,-150.0,0.00012243,2]
[422834887,1779497440000,-150.0,0.00012306,2]
[422834881,1779497440000,-150.0,0.0001225,2]
[422834894,1779497440000,-39690.81006958,0.0001236,2]
[422834883,1779497440000,-150.0,0.00012268,2]
[422834882,1779497440000,-150.0,0.00012259,2]
[422834890,1779497440000,-150.0,0.00012337,2]
[422834897,1779497440000,-150.0,0.00012372,2]
[422834895,1779497440000,-150.0,0.00012368,2]
[422834892,1779497440000,-736.0,0.00012341,2]
[422834888,1779497440000,-150.0,0.0001232,2]
[422834874,1779497440000,-150.0,0.00012181,2]
[422834884,1779497440000,-150.0,0.00012285,2]
[422834875,1779497440000,-150.0,0.00012198,2]
[422834861,1779497440000,-823.0,0.00012083,2]
[422834871,1779497440000,-1221.16,0.0001217,2]
[422834889,1779497440000,-1467.33,0.00012329,2]
[422834854,1779497440000,-150.0,0.00012025,2]
[422834853,1779497440000,-150.0,0.00012025,2]
[422834857,1779497440000,-150.0,0.00012059,2]
[422834855,1779497440000,-480.7,0.00012027,2]
[422834860,1779497440000,-150.0,0.00012082,2]
[422834858,1779497440000,-150.0,0.00012077,2]
[422834856,1779497440000,-150.0,0.00012042,2]
[422834859,1779497440000,-150.0,0.00012077,2]
[422834863,1779497440000,-150.0,0.00012103,2]
[422834862,1779497440000,-150.0,0.00012094,2]
[422834866,1779497440000,-150.0,0.00012118,2]
[422834864,1779497440000,-150.0,0.00012111,2]
[422834868,1779497440000,-150.0,0.00012146,2]
[422834865,1779497440000,-150.0,0.00012118,2]
[422834867,1779497440000,-150.0,0.00012129,2]
[422834869,1779497440000,-150.0,0.00012157,2]
[422834870,1779497440000,-150.0,0.00012163,2]
[422834873,1779497440000,-150.0,0.00012181,2]
[422834876,1779497440000,-150.0,0.00012216,2]
[422834893,1779497440000,-150.0,0.00012354,2]
[422834917,1779497440000,-153.60079131,0.00012493,2]
[422834896,1779497440000,-150.0,0.00012368,2]
[422834921,1779497440000,-15000.0,0.000125,2]
[422834920,1779497440000,-10000.0,0.000125,2]
[422834923,1779497440000,-3242.21423018,0.000125,2]
[422834922,1779497440000,-6111.0,0.000125,2]
[422834925,1779497440000,-15000.0,0.000125,2]
[422834924,1779497440000,-10000.0,0.000125,2]
[422834927,1779497440000,-764.0,0.00012515,5]
[422834926,1779497440000,-866.17004474,0.000125,2]
[422834918,1779497440000,-150.00000001,0.00012493,2]
[422834929,1779497440000,-38238.30343516,0.00012585,2]
[422834932,1779497440000,-150.0,0.00012604,2]
[422834931,1779497440000,-169.33,0.0001259,2]
[422834930,1779497440000,-169.33,0.0001259,2]
[422834934,1779497440000,-18556.16699413,0.00012668,2]
[422834933,1779497440000,-393.9254056,0.0001265,2]
[422834936,1779497440000,-150.0,0.00012753,2]
[422834938,1779497440000,-150.0,0.00012828,2]
[422834935,1779497440000,-150.0,0.00012679,2]
[422834928,1779497440000,-150.0,0.0001253,2]
[422834919,1779497440000,-293.54721559,0.00012493,2]
[422834937,1779497440000,-2000.0,0.00012768,2]
[422834916,1779497440000,-151.18563071,0.00012493,2]
[422834912,1779497440000,-150.0,0.00012493,2]
[422834899,1779497440000,-169.33,0.0001238,2]
[422834903,1779497440000,-308.0,0.000124,2]
[422834900,1779497440000,-150.0,0.00012381,2]
[422834901,1779497440000,-150.0,0.00012389,2]
[422834898,1779497440000,-169.33,0.0001238,2]
[422834908,1779497440000,-150.0,0.00012441,2]
[422834904,1779497440000,-150.0,0.00012406,2]
[422834905,1779497440000,-150.0,0.00012415,2]
[422834891,1779497440000,-150.0,0.00012337,2]
[422834906,1779497440000,-160.0,0.00012423,2]
[422834907,1779497440000,-150.0,0.00012424,2]
[422834910,1779497440000,-150.0,0.00012458,2]
[422834939,1779497440000,-275.36,0.00012877,2]
[422834911,1779497440000,-150.0,0.00012476,2]
[422834915,1779497440000,-155.157559,0.00012493,2]
[422834913,1779497440000,-185.07766993,0.00012493,2]
[422834914,1779497440000,-217.49702434,0.00012493,2]
[422834909,1779497440000,-150.0,0.00012455,2]
[422834902,1779497440000,-150.0,0.00012389,2]
[422834970,1779497441000,-168.205681,0.00013151,2]
[422834969,1779497441000,-151.0,0.00013151,2]
[422834967,1779497441000,-151.0,0.00013151,2]
[422834966,1779497441000,-151.0,0.00013151,2]
[422834964,1779497441000,-151.0,0.00013151,2]
[422834968,1779497441000,-151.0,0.00013151,2]
[422834972,1779497441000,-4609.0,0.00013171,2]
[422834975,1779497441000,-359.27,0.00013216,2]
[422834974,1779497441000,-150.0,0.00013201,2]
[422834973,1779497441000,-500.0,0.00013178,2]